bitfinex/quotes_BTCUSD_20250922
["timestamp","ask_amount","ask_price","bid_price","bid_amount"]
[1758553298901,0.00021166,113200.0,113190.0,1.53685115]
[1758553300887,0.00021166,113200.0,113190.0,1.56700305]
[1758553302943,0.00021166,113200.0,113190.0,1.47132305]
[1758553303145,0.00021166,113200.0,113190.0,1.19068305]
[1758553303771,0.00021166,113200.0,113190.0,1.56672305]
[1758553304735,0.00021166,113200.0,113190.0,1.47120305]
[1758553304949,0.00021166,113200.0,113190.0,0.66856562]
[1758553305158,0.2046201,113200.0,113190.0,0.26996372]
[1758553305396,0.72673753,113200.0,113190.0,0.09326967]
[1758553305805,0.72673753,113200.0,113190.0,0.09026967]
[1758553306015,0.2046201,113200.0,113190.0,0.08526967]
[1758553306230,0.02794166,113200.0,113190.0,0.26396372]
[1758553306442,0.00222166,113200.0,113190.0,0.29137372]
[1758553306648,0.1789001,113200.0,113190.0,0.28937372]
[1758553306822,0.2014501,113200.0,113190.0,0.26607372]
[1758553307230,0.02477166,113200.0,113190.0,0.26607372]
[1758553307649,0.02477166,113200.0,113190.0,0.26407372]
[1758553307842,0.02477166,113200.0,113190.0,0.27659062]
[1758553308072,0.2014501,113200.0,113190.0,0.27759062]
[1758553308804,0.02477166,113200.0,113190.0,0.27759062]
[1758553309000,0.2014501,113200.0,113190.0,0.27548062]
[1758553309431,0.2014501,113200.0,113190.0,0.27759062]
[1758553310256,0.02477166,113200.0,113190.0,0.27759062]
[1758553310486,0.00021166,113200.0,113190.0,0.30393062]
[1758553310686,0.00021166,113200.0,113190.0,0.67680116]
[1758553311090,0.00021166,113200.0,113190.0,0.30393062]
[1758553311732,0.00021166,113200.0,113190.0,0.28063062]
[1758553311953,0.00021166,113200.0,113190.0,0.30393062]
[1758553312265,0.00021166,113200.0,113190.0,0.67680116]
[1758553312683,0.00021166,113200.0,113190.0,1.01680116]
[1758553313096,0.00021166,113200.0,113190.0,1.29972116]
[1758553313268,0.00021166,113200.0,113190.0,1.32987306]
[1758553313477,0.18355534,113210.0,113200.0,0.17690928]
[1758553313679,0.01512894,113210.0,113200.0,0.26428895]
[1758553313883,0.01512894,113210.0,113200.0,0.94005139]
[1758553314082,0.00689248,113210.0,113200.0,1.30335139]
[1758553314523,0.00689248,113210.0,113200.0,1.68187139]
[1758553314727,0.00789248,113210.0,113200.0,1.30335139]
[1758553315068,0.00689248,113210.0,113200.0,1.21348085]
[1758553315651,0.00689248,113210.0,113200.0,1.21548085]
[1758553315933,0.00689248,113210.0,113200.0,1.21544085]
[1758553316190,0.00890248,113210.0,113200.0,0.87598895]
[1758553316397,0.03462248,113210.0,113200.0,0.81675895]
[1758553316605,0.03145248,113210.0,113200.0,0.82175895]
[1758553316821,0.03145248,113210.0,113200.0,0.56732895]
[1758553317013,0.03145248,113210.0,113200.0,0.85024895]
[1758553317220,0.03145248,113210.0,113200.0,0.85028895]
[1758553317434,0.03145248,113210.0,113200.0,0.82194895]
[1758553317620,0.20811531,113210.0,113200.0,0.82494895]
[1758553317819,0.03145248,113210.0,113200.0,0.82494895]
[1758553318334,0.03145248,113210.0,113200.0,0.82194895]
[1758553318581,0.03145248,113210.0,113200.0,0.81794895]
[1758553318760,0.21117531,113210.0,113200.0,0.53487895]
[1758553318964,0.03451248,113210.0,113200.0,0.81767895]
[1758553319176,0.03145248,113210.0,113200.0,0.81767895]
[1758553319408,0.20811531,113210.0,113200.0,0.81767895]
[1758553319720,0.20811531,113210.0,113200.0,0.81973895]
[1758553320146,0.20811531,113210.0,113200.0,0.81767895]
[1758553320583,0.20811531,113210.0,113200.0,0.81973895]
[1758553320784,0.21117531,113210.0,113200.0,0.35820051]
[1758553320992,0.21117531,113210.0,113200.0,0.81767895]
[1758553321396,0.03451248,113210.0,113200.0,0.81767895]
[1758553321598,0.20811531,113210.0,113200.0,0.81973895]
[1758553321834,0.20811531,113210.0,113200.0,0.81767895]
[1758553322678,0.00689248,113210.0,113200.0,1.19584949]
[1758553322886,0.00689248,113210.0,113200.0,1.56066949]
[1758553323128,0.00689248,113210.0,113200.0,1.59082139]
[1758553324637,0.00689248,113210.0,113200.0,0.93515085]
[1758553324841,0.00689248,113210.0,113200.0,1.59074139]
[1758553326109,0.00689248,113210.0,113200.0,1.69074139]
[1758553327718,0.00689248,113210.0,113200.0,2.69074139]
[1758553328518,0.00689248,113210.0,113200.0,2.69190139]
[1758553328679,0.00689248,113210.0,113200.0,2.78738139]
[1758553329511,0.00689248,113210.0,113200.0,3.23538139]
[1758553330825,0.00689248,113210.0,113200.0,2.85602139]
[1758553331031,0.00899248,113210.0,113200.0,2.73865085]
[1758553331235,0.03258248,113210.0,113200.0,2.76347085]
[1758553331496,0.03048248,113210.0,113200.0,2.76671085]
[1758553331650,0.03048248,113210.0,113200.0,2.48315085]
[1758553331860,0.20924531,113210.0,113200.0,2.45509085]
[1758553332078,0.03258248,113210.0,113200.0,2.73861085]
[1758553332265,0.03258248,113210.0,113200.0,3.11148139]
[1758553332469,0.03258248,113210.0,113200.0,3.13954139]
[1758553332703,0.03258248,113210.0,113200.0,3.11148139]
[1758553332906,0.03258248,113210.0,113200.0,3.11152139]
[1758553333597,0.03258248,113210.0,113200.0,3.13634139]
[1758553333815,0.03258248,113210.0,113200.0,3.13958139]
[1758553334018,0.00689248,113210.0,113200.0,3.13958139]
[1758553335421,0.00689248,113210.0,113200.0,2.69158139]
[1758553337133,0.00689248,113210.0,113200.0,2.69138139]
[1758553338362,0.00689248,113210.0,113200.0,2.69022139]
[1758553338565,0.00689248,113210.0,113200.0,2.88986785]
[1758553340286,0.20999531,113210.0,113200.0,2.29025085]
[1758553340490,0.20999531,113210.0,113200.0,2.57444935]
[1758553340876,0.03333248,113210.0,113200.0,2.57444935]
[1758553341112,0.03634248,113210.0,113200.0,2.00503085]
[1758553341303,0.21300531,113210.0,113200.0,2.29128935]
[1758553341483,0.21300531,113210.0,113200.0,2.26113745]
[1758553341691,0.21300531,113210.0,113200.0,2.54425745]
[1758553341922,0.20999531,113210.0,113200.0,1.63487895]
[1758553342103,0.21300531,113210.0,113200.0,1.18850051]
[1758553342305,0.21300531,113210.0,113200.0,1.75783901]
[1758553342697,0.21300531,113210.0,113200.0,1.93451745]
[1758553344120,0.21300531,113210.0,113200.0,1.64825895]
[1758553344327,0.21300531,113210.0,113200.0,1.93451745]
[1758553345330,0.21300531,113210.0,113200.0,1.64825895]
[1758553345743,0.03634248,113210.0,113200.0,1.93451745]
[1758553345950,0.21300531,113210.0,113200.0,1.93451745]
[1758553346175,0.20999531,113210.0,113200.0,1.93451745]
[1758553346390,0.20999531,113210.0,113200.0,1.93655745]
[1758553346810,0.21300531,113210.0,113200.0,1.93419745]
[1758553347353,0.21300531,113210.0,113200.0,2.20389745]
[1758553347945,0.03333248,113210.0,113200.0,2.20389745]
[1758553348170,0.03333248,113210.0,113200.0,2.20592745]
[1758553348387,0.20999531,113210.0,113200.0,2.23062745]
[1758553348845,0.20999531,113210.0,113200.0,2.23383745]
[1758553350049,0.00893248,113210.0,113200.0,2.23383745]
[1758553350268,0.00689248,113210.0,113200.0,2.23383745]
[1758553352066,0.00689248,113210.0,113200.0,1.92287895]
[1758553352237,0.00689248,113210.0,113200.0,2.89024785]
[1758553352622,0.00689248,113210.0,113200.0,2.31773085]
[1758553352824,0.00689248,113210.0,113200.0,2.89024785]
[1758553353927,0.00689248,113210.0,113200.0,2.88988785]
[1758553354380,0.00689248,113210.0,113200.0,2.03497085]
[1758553354596,0.21300531,113210.0,113200.0,2.29128935]
[1758553354817,0.49926381,113210.0,113200.0,1.45820051]
[1758553355028,0.49926381,113210.0,113200.0,1.74064051]
[1758553355236,0.21300531,113210.0,113200.0,1.74068051]
[1758553355442,0.49926381,113210.0,113200.0,1.74068051]
[1758553355646,0.49926381,113210.0,113200.0,1.47098051]
[1758553356079,0.78166381,113210.0,113200.0,1.47094051]
[1758553356495,0.21300531,113210.0,113200.0,1.18750051]
[1758553356676,0.49926381,113210.0,113200.0,1.18550051]
[1758553356878,0.49926381,113210.0,113200.0,1.46786051]
[1758553357294,0.49926381,113210.0,113200.0,1.46782051]
[1758553357499,0.21300531,113210.0,113200.0,1.64449895]
[1758553357672,0.20981531,113210.0,113200.0,1.93278745]
[1758553357883,0.18355531,113210.0,113200.0,1.96069745]
[1758553358295,0.00689248,113210.0,113200.0,1.96069745]
[1758553358625,0.18355531,113210.0,113200.0,1.96069745]
[1758553359502,0.21300531,113210.0,113200.0,1.46782051]
[1758553359910,0.21300531,113210.0,113200.0,1.46766051]
[1758553360533,0.21300531,113210.0,113200.0,1.46758051]
[1758553360742,0.49926381,113210.0,113200.0,1.46758051]
[1758553360950,0.21300531,113210.0,113200.0,1.46758051]
[1758553361423,0.49926381,113210.0,113200.0,1.46758051]
[1758553362095,0.18563531,113210.0,113200.0,1.46961051]
[1758553362316,0.18355531,113210.0,113200.0,1.49752051]
[1758553362523,0.21300531,113210.0,113200.0,1.18550051]
[1758553362728,0.49926381,113210.0,113200.0,1.46754051]
[1758553362945,0.20981531,113210.0,113200.0,1.46957051]
[1758553363528,0.20981531,113210.0,113200.0,1.49427051]
[1758553363728,0.20981531,113210.0,113200.0,1.46957051]
[1758553363904,0.21300531,113210.0,113200.0,1.46754051]
[1758553364520,0.20981531,113210.0,113200.0,1.46754051]
[1758553364682,0.49607381,113210.0,113200.0,1.46754051]
[1758553364888,0.49926381,113210.0,113200.0,1.46746051]
[1758553366118,0.49926381,113210.0,113200.0,1.18550051]
[1758553366326,0.49926381,113210.0,113200.0,1.10023084]
[1758553367349,0.50026381,113210.0,113200.0,1.10023084]
[1758553368700,0.78652231,113210.0,113200.0,1.10023084]
[1758553368904,0.78552231,113210.0,113200.0,1.10023084]
[1758553369420,0.78652231,113210.0,113200.0,1.10023084]
[1758553369832,1.22204231,113210.0,113200.0,1.10023084]
[1758553370039,1.4379404,113210.0,113200.0,1.10023084]
[1758553370384,1.560025,113210.0,113200.0,1.10023084]
[1758553370593,1.75159732,113210.0,113200.0,1.10023084]
[1758553371175,1.65623732,113210.0,113200.0,1.10023084]
[1758553371375,1.75175732,113210.0,113200.0,1.10023084]
[1758553371975,1.65623732,113210.0,113200.0,1.10023084]
[1758553372179,1.75175732,113210.0,113200.0,1.10023084]
[1758553372465,1.83602699,113210.0,113200.0,0.70191809]
[1758553372664,1.83602699,113210.0,113200.0,0.60458556]
[1758553372958,1.84002699,113210.0,113200.0,0.60458556]
[1758553373164,1.84002699,113210.0,113200.0,0.15015321]
[1758553373583,1.45854699,113210.0,113200.0,0.15015321]
[1758553373756,1.74442699,113210.0,113200.0,0.15015321]
[1758553373966,1.83994699,113210.0,113200.0,0.15015321]
[1758553374520,1.74438699,113210.0,113200.0,0.15015321]
[1758553374726,1.83990699,113210.0,113200.0,0.15015321]
[1758553375162,1.83995395,113210.0,113200.0,0.15015321]
[1758553375357,1.84095395,113210.0,113200.0,0.15015321]
[1758553375620,1.0519312,113210.0,113200.0,0.15015321]
[1758553375822,1.4331712,113210.0,113200.0,0.15015321]
[1758553377369,1.4331312,113210.0,113200.0,0.15015321]
[1758553378253,1.43929286,113210.0,113200.0,0.15015321]
[1758553378672,1.34373286,113210.0,113200.0,0.15015321]
[1758553378902,1.43925286,113210.0,113200.0,0.15015321]
[1758553379044,1.4330912,113210.0,113200.0,0.15015321]
[1758553379443,1.3374912,113210.0,113200.0,0.15015321]
[1758553379645,1.4330112,113210.0,113200.0,0.15015321]
[1758553379950,1.0559312,113210.0,113200.0,0.15015321]
[1758553380161,0.96772153,113210.0,113200.0,0.15230321]
[1758553380464,0.96772153,113210.0,113200.0,0.15015321]
[1758553380648,0.94329153,113210.0,113200.0,0.17508321]
[1758553380867,0.94329153,113210.0,113200.0,0.15542321]
[1758553381091,0.94121153,113210.0,113200.0,0.17820321]
[1758553381449,1.19616693,113210.0,113200.0,0.17820321]
[1758553381654,1.18716693,113210.0,113200.0,0.17820321]
[1758553382063,1.19416693,113210.0,113200.0,0.17820321]
[1758553382268,1.19016693,113210.0,113200.0,0.17820321]
[1758553382707,1.18716693,113210.0,113200.0,0.17820321]
[1758553382917,1.18916693,113210.0,113200.0,0.17820321]
[1758553383358,1.19120693,113210.0,113200.0,0.15015321]
[1758553383574,1.21874693,113210.0,113200.0,0.15015321]
[1758553385310,1.21870189,113210.0,113200.0,0.15015321]
[1758553385862,1.21870189,113210.0,113200.0,0.15019321]
[1758553387933,1.60074655,113210.0,113200.0,0.15019321]
[1758553388149,1.71563431,113210.0,113200.0,1e-08]
[1758553388360,1.74836368,113210.0,113200.0,1e-08]
[1758553389398,1.75658244,113210.0,113200.0,1e-08]
[1758553390233,1.77302096,113210.0,113200.0,1e-08]
[1758553390659,1.79578517,113210.0,113200.0,1e-08]
[1758553391844,1.87593707,113210.0,113200.0,1e-08]
[1758553392314,1.86155524,113210.0,113200.0,1e-08]
[1758553392462,3.04692334,113210.0,113200.0,1e-08]
[1758553392643,2.97692334,113210.0,113200.0,1e-08]
[1758553392841,3.450108,113210.0,113200.0,1e-08]
[1758553393047,3.06806334,113210.0,113200.0,1e-08]
[1758553393245,2.87481301,113210.0,113200.0,1e-08]
[1758553393449,2.86659539,113210.0,113200.0,1e-08]
[1758553393676,3.62543539,113210.0,113200.0,1e-08]
[1758553393870,3.65625212,113210.0,113200.0,1e-08]
[1758553394072,3.66025212,113210.0,113200.0,1e-08]
[1758553394278,2.89741212,113210.0,113200.0,1e-08]
[1758553394475,3.55769212,113210.0,113200.0,1e-08]
[1758553394770,3.64744791,113210.0,113200.0,1e-08]
[1758553396244,3.71758727,113210.0,113200.0,1e-08]
[1758553396652,2.95878727,113210.0,113200.0,1e-08]
[1758553397016,3.21853827,113210.0,113200.0,1e-08]
[1758553397217,3.69625827,113210.0,113200.0,1e-08]
[1758553397497,2.93757827,113210.0,113200.0,1e-08]
[1758553397715,3.69625827,113210.0,113200.0,1e-08]
[1758553398331,2.93757827,113210.0,113200.0,1e-08]
[1758553398536,3.60077827,113210.0,113200.0,1e-08]
[1758553398742,3.69633827,113210.0,113200.0,1e-08]
[1758553399778,2.93757827,113210.0,113200.0,1e-08]
[1758553399987,2.3292656,113210.0,113200.0,1e-08]
[1758553400132,3.0879456,113210.0,113200.0,1e-08]
[1758553401939,2.29964751,113210.0,113200.0,1e-08]
[1758553402150,3.05832751,113210.0,113200.0,1e-08]
[1758553402329,3.14359718,113210.0,113200.0,1e-08]
[1758553403398,2.38491718,113210.0,113200.0,1e-08]
[1758553403591,2.66573831,113210.0,113200.0,1e-08]
[1758553403800,3.14353831,113210.0,113200.0,1e-08]
[1758553404205,2.38489831,113210.0,113200.0,1e-08]
[1758553404398,2.27292464,113210.0,113200.0,1e-08]
[1758553404600,2.29047374,113210.0,113200.0,1e-08]
[1758553404807,1.83314442,113210.0,113200.0,1e-08]
[1758553405008,1.83314442,113210.0,113190.0,0.02774]
[1758553405009,0.54683034,113200.0,113190.0,0.02774]
[1758553405189,0.94371637,113200.0,113190.0,0.02774]
[1758553405383,0.94371637,113200.0,113190.0,0.02983]
[1758553405770,1.32599545,113200.0,113190.0,0.02983]
[1758553406025,2.21221459,113200.0,113190.0,0.02983]
[1758553406256,2.22421459,113200.0,113190.0,0.02983]
[1758553407261,2.23021459,113200.0,113190.0,0.02983]
[1758553407621,2.23228607,113200.0,113190.0,0.02983]
[1758553407828,0.17674089,113160.0,113150.0,0.07130631]
[1758553408039,0.45758089,113160.0,113150.0,0.15858598]
[1758553408463,0.45758089,113160.0,113150.0,0.09050967]
[1758553408955,0.45758089,113160.0,113150.0,0.09059268]
[1758553409357,0.45758089,113160.0,113150.0,0.09259268]
[1758553410090,0.45758089,113160.0,113150.0,0.11480268]
[1758553411419,0.45758089,113160.0,113150.0,0.67360385]
[1758553411755,0.45758089,113160.0,113150.0,0.49684734]
[1758553412702,0.17674089,113160.0,113150.0,0.67360385]
[1758553412901,0.45758089,113160.0,113150.0,0.67360385]
[1758553413550,0.28084,113160.0,113150.0,0.67360385]
[1758553413759,0.17673946,113170.0,113160.0,0.17674089]
[1758553413965,0.17673946,113170.0,113160.0,0.66945522]
[1758553414209,0.17673946,113170.0,113160.0,0.67146522]
[1758553414210,0.45757946,113170.0,113160.0,0.67146522]
[1758553414623,0.45757946,113170.0,113160.0,0.73731157]
[1758553415214,0.45957946,113170.0,113160.0,0.73731157]
[1758553415429,0.46057946,113170.0,113160.0,0.35526691]
[1758553415572,0.46057946,113170.0,113160.0,0.74231157]
[1758553416455,0.46057946,113170.0,113160.0,0.56557068]
[1758553416669,0.45957946,113170.0,113160.0,0.56557068]
[1758553417003,0.45957946,113170.0,113160.0,0.56657068]
[1758553417410,0.45957946,113170.0,113160.0,0.74331157]
[1758553418062,0.45957946,113170.0,113160.0,0.56657068]
[1758553418439,0.17873946,113170.0,113160.0,0.74331157]
[1758553418637,0.45953946,113170.0,113160.0,0.74331157]
[1758553421297,0.002,113170.0,113160.0,0.74331157]
[1758553422875,0.25668843,113160.0,113150.0,1.09753142]
[1758553423217,0.25668843,113160.0,113150.0,1.56484575]
[1758553423980,0.25668843,113160.0,113150.0,1.56784575]
[1758553424783,0.25668843,113160.0,113150.0,1.28704575]
[1758553424991,0.25668843,113160.0,113150.0,1.56784575]
[1758553425225,0.25668843,113160.0,113150.0,1.29204575]
[1758553425433,0.25668843,113160.0,113150.0,1.57284575]
[1758553426003,0.25668843,113160.0,113150.0,1.29204575]
[1758553426404,0.25668843,113160.0,113150.0,0.91000109]
[1758553426610,0.25668843,113160.0,113150.0,1.20265385]
[1758553427046,0.43342932,113160.0,113150.0,1.20265385]
[1758553427299,0.43549932,113160.0,113150.0,0.09339268]
[1758553427479,0.46338932,113160.0,113150.0,0.00812301]
[1758553427657,0.74414932,113160.0,113150.0,0.00812301]
[1758553431381,0.46338932,113160.0,113150.0,0.00812301]
[1758553431597,0.74414932,113160.0,113150.0,0.00812301]
[1758553431798,0.43342932,113160.0,113150.0,0.28782484]
[1758553432003,0.71418932,113160.0,113150.0,0.27014919]
[1758553432242,0.43342932,113160.0,113150.0,0.27014919]
[1758553432421,0.25668843,113160.0,113150.0,0.27014919]
[1758553432592,0.25668843,113160.0,113150.0,0.5567138]
[1758553432998,0.43342932,113160.0,113150.0,0.5567138]
[1758553433288,0.43342932,113160.0,113150.0,0.27014919]
[1758553433594,0.46338932,113160.0,113150.0,0.09339268]
[1758553433775,0.74995393,113160.0,113150.0,0.09339268]
[1758553434360,0.74995393,113160.0,113150.0,0.00812301]
[1758553435259,0.46338932,113160.0,113150.0,0.00812301]
[1758553435483,0.74414932,113160.0,113150.0,0.00812301]
[1758553435682,1.03071393,113160.0,113150.0,0.00812301]
[1758553438206,1.31727854,113160.0,113150.0,0.00812301]
[1758553440220,1.03071393,113160.0,113150.0,0.00812301]
[1758553440479,0.74995393,113160.0,113150.0,0.00812301]
[1758553440684,1.03071393,113160.0,113150.0,0.00812301]
[1758553441195,0.74995393,113160.0,113150.0,0.00812301]
[1758553441401,1.03071393,113160.0,113150.0,0.00812301]
[1758553442511,0.46338932,113160.0,113150.0,0.00812301]
[1758553442677,0.71625932,113160.0,113150.0,0.1848278]
[1758553443055,0.71418932,113160.0,113150.0,0.55666208]
[1758553443482,0.43342932,113160.0,113150.0,0.55666208]
[1758553444333,0.43342932,113160.0,113150.0,0.27009747]
[1758553445324,0.43342932,113160.0,113150.0,0.55666208]
[1758553447999,0.43555932,113160.0,113150.0,0.55666208]
[1758553448437,0.46155932,113160.0,113150.0,0.09334096]
[1758553449314,0.46155932,113160.0,113150.0,0.27009747]
[1758553449539,0.46155932,113160.0,113150.0,0.09334096]
[1758553449961,0.74812393,113160.0,113150.0,0.09334096]
[1758553450380,1.03468854,113160.0,113150.0,0.00807129]
[1758553453014,1.03468854,113160.0,113150.0,0.00307129]
[1758553454575,1.03468854,113160.0,113150.0,0.00207129]
[1758553454774,1.37468854,113160.0,113150.0,0.00307129]
[1758553455190,1.37468854,113160.0,113150.0,7.129e-05]
[1758553455634,1.37668854,113160.0,113150.0,7.129e-05]
[1758553455855,1.65540854,113160.0,113150.0,7.129e-05]
[1758553456160,1.65740854,113160.0,113150.0,7.129e-05]
[1758553456974,1.68398403,113160.0,113150.0,7.129e-05]
[1758553457637,1.11085481,113160.0,113150.0,7.129e-05]
[1758553458894,0.83013481,113160.0,113150.0,7.129e-05]
[1758553459091,1.11085481,113160.0,113150.0,7.129e-05]
[1758553459537,0.83013481,113160.0,113150.0,7.129e-05]
[1758553459742,1.20641481,113160.0,113150.0,7.129e-05]
[1758553459984,0.83013481,113160.0,113150.0,7.129e-05]
[1758553460161,1.20641481,113160.0,113150.0,7.129e-05]
[1758553463001,0.83013481,113160.0,113150.0,7.129e-05]
[1758553463221,1.11085481,113160.0,113150.0,7.129e-05]
[1758553463416,0.80732481,113160.0,113150.0,7.129e-05]
[1758553463823,1.08804481,113160.0,113150.0,7.129e-05]
[1758553464054,0.46200481,113160.0,113150.0,0.1768278]
[1758553464271,0.43542932,113160.0,113150.0,0.1768278]
[1758553464495,0.43542932,113160.0,113150.0,0.26209747]
[1758553464895,0.25868843,113160.0,113150.0,0.26209747]
[1758553465657,0.43542932,113160.0,113150.0,0.26209747]
[1758553467465,0.25868843,113160.0,113150.0,0.26213747]
[1758553468413,0.25868843,113160.0,113150.0,0.63228937]
[1758553468635,0.25868843,113160.0,113150.0,0.65885646]
[1758553469291,0.25668843,113160.0,113150.0,0.65885646]
[1758553469490,0.25668843,113160.0,113150.0,0.93953646]
[1758553469690,0.25668843,113160.0,113150.0,0.94753646]
[1758553470120,0.25668843,113160.0,113150.0,0.94453646]
[1758553470426,0.25668843,113160.0,113150.0,0.94853646]
[1758553470846,0.25668843,113160.0,113150.0,0.94353646]
[1758553471302,0.25668843,113160.0,113150.0,0.95253646]
[1758553472320,0.25668843,113160.0,113150.0,1.04809646]
[1758553473754,0.25668843,113160.0,113150.0,1.04805646]
[1758553474910,0.25668843,113160.0,113150.0,0.67185646]
[1758553475086,0.25668843,113160.0,113150.0,1.04805646]
[1758553477927,0.25668843,113160.0,113150.0,0.67185646]
[1758553478135,0.25668843,113160.0,113150.0,1.04801646]
[1758553479299,0.25668843,113160.0,113150.0,0.95245646]
[1758553479432,0.25668843,113160.0,113150.0,1.04797646]
[1758553480611,0.25668843,113160.0,113150.0,0.67185646]
[1758553480844,0.25668843,113160.0,113150.0,0.95245646]
[1758553480845,0.28636843,113160.0,113150.0,0.95245646]
[1758553481256,0.25883843,113160.0,113150.0,0.95245646]
[1758553481463,0.25668843,113160.0,113150.0,0.67185646]
[1758553481807,0.26180843,113160.0,113150.0,0.95245646]
[1758553482024,0.28636843,113160.0,113150.0,0.95245646]
[1758553482628,0.28636843,113160.0,113150.0,0.92584937]
[1758553482832,0.28636843,113160.0,113150.0,0.58584937]
[1758553485249,0.25668843,113160.0,113150.0,0.58584937]
[1758553485972,0.25668843,113160.0,113150.0,0.61241561]
[1758553488889,0.25883843,113160.0,113150.0,0.33185561]
[1758553489098,0.25883843,113160.0,113150.0,0.30528937]
[1758553489289,0.28636843,113160.0,113150.0,0.58584937]
[1758553489789,0.25668843,113160.0,113150.0,0.58584937]
[1758553493074,0.25668843,113160.0,113150.0,0.92584937]
[1758553493498,0.25668843,113160.0,113150.0,0.64528937]
[1758553493690,0.25668843,113160.0,113150.0,0.92580937]
[1758553497130,0.25668843,113160.0,113150.0,0.95237319]
[1758553497995,0.25668843,113160.0,113150.0,0.67185319]
[1758553498404,0.25668843,113160.0,113150.0,1.04785319]
[1758553500431,0.25668843,113160.0,113150.0,0.67185319]
[1758553500660,0.26175843,113160.0,113150.0,0.95233319]
[1758553500975,0.28620843,113160.0,113150.0,1.04785319]
[1758553501104,0.28620843,113160.0,113150.0,0.67185319]
[1758553501515,0.28620843,113160.0,113150.0,0.92576937]
[1758553501717,0.28620843,113160.0,113150.0,0.64528937]
[1758553501980,0.28620843,113160.0,113150.0,0.92576937]
[1758553502149,0.28620843,113160.0,113150.0,0.64528937]
[1758553502371,0.28620843,113160.0,113150.0,0.92576937]
[1758553502580,0.1854615,113160.0,113150.0,0.92576937]
[1758553502782,0.1854615,113160.0,113150.0,0.61513747]
[1758553503166,0.1854615,113160.0,113150.0,0.89557747]
[1758553503369,0.36220239,113160.0,113150.0,0.12853286]
[1758553503779,0.36220239,113160.0,113150.0,0.09838096]
[1758553504171,0.36220239,113160.0,113150.0,0.37882096]
[1758553504386,0.17677214,113140.0,113130.0,0.05644626]
[1758553504596,0.57719382,113140.0,113130.0,0.00046945]
[1758553504839,0.17681902,113110.0,113100.0,0.13424]
[1758553505043,0.17684173,113100.0,113090.0,0.0272]
[1758553505240,0.17896173,113100.0,113090.0,0.09450861]
[1758553505485,0.17896173,113100.0,113090.0,0.02724692]
[1758553505689,0.17896173,113100.0,113090.0,4.692e-05]
[1758553506102,0.17896173,113100.0,113090.0,0.08727659]
[1758553506295,0.17896173,113100.0,113090.0,0.14199849]
[1758553506468,0.17896173,113100.0,113090.0,0.11184659]
[1758553507279,0.17684173,113100.0,113090.0,0.29194688]
[1758553507485,0.17684173,113100.0,113090.0,0.32209878]
[1758553507702,0.17684173,113100.0,113090.0,0.14524849]
[1758553507913,0.17896173,113100.0,113090.0,0.14199849]
[1758553508095,0.17896173,113100.0,113090.0,0.14399849]
[1758553508304,0.17896173,113100.0,113090.0,0.14699849]
[1758553508510,0.17684173,113100.0,113090.0,0.15024849]
[1758553508762,0.17896173,113100.0,113090.0,0.15024849]
[1758553508971,0.17896173,113100.0,113090.0,0.14699849]
[1758553509793,0.17684173,113100.0,113090.0,0.15024849]
[1758553510237,0.17896173,113100.0,113090.0,0.15024849]
[1758553510444,0.17896173,113100.0,113090.0,0.14699849]
[1758553510850,0.17896173,113100.0,113090.0,0.32384878]
[1758553511053,0.17896173,113100.0,113090.0,0.14699849]
[1758553511472,0.17976902,113110.0,113090.0,0.32709878]
[1758553511693,0.17683465,113100.0,113090.0,0.32709878]
[1758553512086,0.17683465,113100.0,113090.0,0.15024849]
[1758553512297,0.17895465,113100.0,113090.0,0.14499849]
[1758553512419,0.17895465,113100.0,113090.0,0.14303849]
[1758553512636,0.18190465,113100.0,113090.0,0.12046849]
[1758553512840,0.18190465,113100.0,113090.0,0.43234849]
[1758553513468,0.17895465,113100.0,113090.0,0.61115878]
[1758553513671,0.17895465,113100.0,113090.0,0.45887849]
[1758553514072,0.18199465,113100.0,113090.0,0.43234849]
[1758553514279,0.18199465,113100.0,113090.0,0.43046849]
[1758553514502,0.18199465,113100.0,113090.0,0.43346849]
[1758553514722,0.17895465,113100.0,113090.0,0.12146849]
[1758553514930,0.18199465,113100.0,113090.0,0.43350849]
[1758553515263,0.18199465,113100.0,113090.0,0.09131659]
[1758553516313,0.18199465,113100.0,113090.0,0.00604692]
[1758553516795,0.55984917,113100.0,113090.0,0.00604692]
[1758553517200,0.52199465,113100.0,113090.0,0.00604692]
[1758553517415,0.52199465,113100.0,113090.0,0.00304692]
[1758553518166,0.52199465,113100.0,113090.0,4.692e-05]
[1758553518575,0.52499465,113100.0,113090.0,4.692e-05]
[1758553521859,0.52195465,113100.0,113090.0,4.692e-05]
[1758553522290,0.52195465,113100.0,113090.0,0.26974692]
[1758553522513,0.52499465,113100.0,113090.0,0.26974692]
[1758553522718,0.18195465,113100.0,113090.0,0.53385688]
[1758553522923,0.17683465,113100.0,113090.0,0.38504659]
[1758553523116,0.17892465,113100.0,113090.0,0.38504659]
[1758553523318,0.17892465,113100.0,113090.0,0.38284659]
[1758553523694,0.17892465,113100.0,113090.0,0.55969688]
[1758553523891,0.17683465,113100.0,113090.0,0.56289688]
[1758553524055,0.49277902,113110.0,113090.0,0.56289688]
[1758553524255,0.17683465,113100.0,113090.0,0.56389688]
[1758553524698,0.17683465,113100.0,113090.0,0.56189688]
[1758553524920,0.17683465,113100.0,113090.0,0.69476659]
[1758553524921,0.17892465,113100.0,113090.0,0.69476659]
[1758553525107,0.18196465,113100.0,113090.0,0.71523832]
[1758553526093,0.18196465,113100.0,113090.0,0.89208861]
[1758553526298,0.17892465,113100.0,113090.0,0.60919861]
[1758553526877,0.17892465,113100.0,113090.0,0.60599861]
[1758553527197,0.17892465,113100.0,113090.0,0.42914832]
[1758553528388,0.17892465,113100.0,113090.0,0.40231832]
[1758553529351,0.17892465,113100.0,113090.0,0.40442832]
[1758553530168,0.17892465,113100.0,113090.0,0.40231832]
[1758553530169,0.18506413,113100.0,113090.0,0.40231832]
[1758553530378,0.18818413,113100.0,113090.0,0.40231832]
[1758553530651,0.20456749,113100.0,113090.0,0.40231832]
[1758553531084,0.20456749,113100.0,113090.0,0.39931832]
[1758553531315,0.19937216,113100.0,113090.0,0.60582861]
[1758553531712,0.19937216,113100.0,113090.0,0.60782861]
[1758553531938,0.19937216,113100.0,113090.0,0.60382861]
[1758553532159,0.20149216,113100.0,113090.0,0.60382861]
[1758553532390,0.03074398,113100.0,113090.0,0.60482861]
[1758553532581,0.1911806,113100.0,113090.0,0.60482861]
[1758553532991,0.1911806,113100.0,113090.0,0.60282861]
[1758553533201,0.1911806,113100.0,113090.0,0.60482861]
[1758553533864,0.01434595,113100.0,113090.0,0.63498051]
[1758553534302,0.01434595,113100.0,113090.0,0.60482861]
[1758553534961,0.01434595,113100.0,113090.0,0.33512861]
[1758553536714,0.1911806,113100.0,113090.0,0.33512861]
[1758553536917,0.1911806,113100.0,113090.0,0.46999832]
[1758553537124,0.1933006,113100.0,113090.0,0.44017832]
[1758553537328,0.1911806,113100.0,113090.0,0.64668861]
[1758553537729,0.1911806,113100.0,113090.0,0.15527832]
[1758553537730,0.1933006,113100.0,113090.0,0.15527832]
[1758553537876,0.1933006,113100.0,113090.0,0.46683832]
[1758553538078,0.19337354,113100.0,113090.0,0.46683832]